fUST/lending_fUST_20250614
["ID","MTS","AMOUNT","RATE_DAILY","PERIOD"]
[365776539,1749906649702,-170.73596121,0.00024121,2]
[365776540,1749906649713,-1005.40217074,0.00024121,2]
[365776541,1749906649723,-1000.0,0.00024121,2]
[365776542,1749906649733,-1000.0,0.00024121,2]
[365776543,1749906649744,-1000.0,0.00024121,2]
[365776544,1749906649754,-1000.0,0.00024121,2]
[365776545,1749906649771,-500.0,0.00024121,2]
[365776546,1749906649795,-1000.0,0.00024121,2]
[365776547,1749906649812,-1000.0,0.00024121,2]
[365776548,1749906649829,-1000.0,0.00024121,2]
[365776549,1749906649848,-442.46825142,0.00024121,2]
[365776550,1749906649865,-1000.0,0.00024121,2]
[365776551,1749906649882,-1000.0,0.00024121,2]
[365776552,1749906649898,-503.94136931,0.00024121,2]
[365776553,1749906649914,-648.43924111,0.00024121,2]
[365776554,1749906649930,-1000.0,0.00024121,2]
[365776555,1749906649943,-392.67113613,0.00024121,2]
[365776556,1749906649959,-1000.68593713,0.00024121,2]
[365776557,1749906649976,-482.42414416,0.00024121,2]
[365776558,1749906649993,-1000.0,0.00024121,2]
[365776559,1749906650012,-1001.59020549,0.00024121,2]
[365776560,1749906650025,-1000.0,0.00024121,2]
[365776561,1749906650038,-573.8401486,0.00024121,2]
[365776562,1749906650055,-1000.0,0.00024121,2]
[365776563,1749906650079,-1200.0,0.00024121,2]
[365776564,1749906650093,-1000.0,0.00024121,2]
[365776565,1749906650108,-1000.0,0.00024121,2]
[365776566,1749906650121,-701.86789802,0.00024121,2]
[365776567,1749906650134,-1000.0,0.00024121,2]
[365776568,1749906650149,-508.50078384,0.00024121,2]
[365776569,1749906650162,-1000.84919256,0.00024121,2]
[365776570,1749906650177,-1000.0,0.00024121,2]
[365776571,1749906650197,-1000.0,0.00024121,2]
[365776572,1749906650211,-1000.0,0.00024121,2]
[365776573,1749906650229,-1000.0,0.00024121,2]
[365776574,1749906650243,-420.33161541,0.00024121,2]
[365776575,1749906650258,-1000.0,0.00024121,2]
[365776576,1749906650272,-151.0,0.00024121,7]
[365776577,1749906650286,-217.428113,0.00024128,7]
[365776578,1749906650301,-217.428113,0.00024128,7]
[365776579,1749906650315,-288.32675101,0.00024137,3]
[365776580,1749906650328,-800.0,0.00024145,2]
[365776581,1749906650343,-3080.41878426,0.00024155,2]
[365776582,1749906650355,-505.162816,0.00024164,2]
[365776583,1749906650365,-2512.73188408,0.00024164,2]
[365776584,1749906650375,-2500.0,0.00024164,2]
[365776585,1749906650385,-180.0,0.00024164,7]
[365776586,1749906650395,-1580.99945931,0.00024176,10]
[365776587,1749906650405,-151.0,0.00024176,7]
[365776588,1749906650415,-151.0,0.00024208,7]
[365776589,1749906650424,-151.0,0.00024208,7]
[365776590,1749906650434,-2200.0,0.00024216,2]
[365776591,1749906650443,-201.0,0.0002422,10]
[365776592,1749906650453,-3080.41878426,0.00024247,2]
[365776593,1749906650462,-320891.64014995,0.00024255,2]
[365776594,1749906650472,-217.428113,0.00024255,7]
[365776595,1749906650482,-217.428113,0.00024255,7]
[365776596,1749906650492,-186.226984,0.00024255,7]
[365776597,1749906650502,-151.0,0.00024255,7]
[365776598,1749906650512,-207.014029,0.00024255,7]
[365776599,1749906650522,-207.014029,0.00024255,7]
[365776600,1749906650531,-151.0,0.00024255,7]
[365776601,1749906650541,-151.0,0.00024255,7]
[365776602,1749906650551,-177.894737,0.00024255,7]
[365776603,1749906650560,-177.894737,0.00024255,7]
[365776604,1749906650570,-581.61621179,0.00024262,2]
[365776605,1749906650580,-1471.0,0.00024272,2]
[365776606,1749906650590,-150.0,0.00024273,2]
[365776607,1749906650771,-151.0,0.00024279,7]
[365776608,1749906650788,-1580.99945931,0.00024279,10]
[365776609,1749906650799,-191.0,0.00024308,2]
[365776610,1749906650808,-90284.68800478,0.00024321,3]
[365776611,1749906650818,-160.0,0.00024321,3]
[365776612,1749906650827,-177.983414,0.00024321,7]
[365776613,1749906650838,-177.983414,0.00024321,7]
[365776614,1749906650847,-151.0,0.00024321,7]
[365776615,1749906650857,-151.0,0.00024321,7]
[365776616,1749906650866,-151.0,0.00024321,7]
[365776617,1749906650875,-151.0,0.00024321,7]
[365776618,1749906650884,-151.0,0.00024321,7]
[365776619,1749906650894,-151.0,0.00024321,7]
[365776620,1749906650903,-172.72022,0.00024321,7]
[365776621,1749906650913,-3080.41878426,0.00024338,2]
[365776622,1749906650922,-164.7498231,0.00024359,2]
[365776623,1749906650932,-206.0,0.0002438,2]
[365776624,1749906650942,-1580.99945931,0.00024383,11]
[365776625,1749906650951,-844.95,0.00024383,4]
[365776626,1749906650962,-1794.95,0.00024383,4]
[365776627,1749906650972,-460.0,0.00024383,4]
[365776628,1749906650982,-785.69,0.00024383,4]
[365776629,1749906650992,-1752.21,0.00024383,4]
[365776630,1749906651002,-460.0,0.00024383,2]
[365776631,1749906651013,-1681.61,0.00024383,4]
[365776632,1749906651026,-460.0,0.00024383,4]
[365776633,1749906651037,-373.6356371,0.00024383,4]
[365776634,1749906651047,-4179.07,0.00024383,4]
[365776635,1749906651057,-1735.71,0.00024383,4]
[365776636,1749906651066,-663.38,0.00024383,4]
[365776637,1749906651078,-1524.42,0.00024383,4]
[365776638,1749906651089,-1397.27,0.00024383,4]
[365776639,1749906651099,-478.44,0.00024383,4]
[365776640,1749906651109,-1932.48,0.00024383,4]
[365776641,1749906651119,-642.09,0.00024383,4]
[365776642,1749906651129,-460.0,0.00024383,4]
[365776643,1749906651140,-460.0,0.00024383,4]
[365776644,1749906651150,-817.11,0.00024383,4]
[365776645,1749906651160,-200.0,0.00024399,2]
[365776646,1749906651169,-160.47005698,0.00024399,2]
[365776647,1749906651180,-151.0,0.000244,7]
[365776648,1749906651190,-151.0,0.000244,7]
[365776649,1749906651200,-151.0,0.000244,7]
[365776650,1749906651210,-151.0,0.000244,7]
[365776651,1749906651229,-280.633622,0.000244,7]
[365776652,1749906651240,-151.0,0.000244,7]
[365776653,1749906651250,-151.0,0.000244,7]
[365776654,1749906651260,-217.428113,0.000244,7]
[365776655,1749906651272,-217.428113,0.000244,7]
[365776656,1749906651282,-160.0,0.000244,3]
[365776657,1749906651294,-151.0,0.000244,7]
[365776658,1749906651304,-835.41710878,0.000244,3]
[365776659,1749906651314,-229.82479369,0.000244,3]
[365776660,1749906651324,-160.0,0.000244,3]
[365776661,1749906651335,-12533.30537164,0.000244,3]
[365776662,1749906651345,-213.28201367,0.000244,3]
[365776663,1749906651354,-207.014029,0.000244,7]
[365776664,1749906651365,-207.014029,0.000244,7]
[365776665,1749906651375,-845.10789306,0.000244,3]
[365776666,1749906651387,-160.0,0.000244,3]
[365776667,1749906651396,-151.0,0.000244,7]
[365776668,1749906651406,-151.0,0.000244,7]
[365776669,1749906651417,-177.894737,0.000244,7]
[365776670,1749906651427,-177.894737,0.000244,7]
[365776671,1749906651437,-800.0,0.00024429,2]
[365776672,1749906651448,-3080.41878426,0.0002443,2]
[365776673,1749906651457,-151.0,0.00024454,7]
[365776674,1749906651467,-151.0,0.00024454,7]
[365776675,1749906651476,-177.983414,0.00024454,7]
[365776676,1749906651486,-177.983414,0.00024454,7]
[365776677,1749906651496,-800.0,0.00024468,2]
[365776678,1749906651505,-151.0,0.00024473,7]
[365776679,1749906651514,-200.0,0.0002448,2]
[365776680,1749906651524,-30767.80463217,0.00024481,7]
[365776681,1749906651534,-1580.99945931,0.00024486,11]
[365776682,1749906651544,-200.0,0.00024499,2]
[365776683,1749906651553,-501.54800992,0.000245,2]
[365776684,1749906651563,-2000.0,0.000245,2]
[365776685,1749906651573,-151525.70152778,0.000245,30]
[365776686,1749906651583,-151.0,0.000245,7]
[365776687,1749906651593,-153.379468,0.000245,7]
[365776688,1749906651602,-151.0,0.000245,7]
[365776689,1749906651611,-151.0,0.000245,7]
[365776690,1749906651620,-151.0,0.000245,7]
[365776691,1749906651630,-151.0,0.000245,7]
[365776692,1749906651640,-177.983414,0.000245,7]
[365776693,1749906651652,-177.983414,0.000245,7]
[365776694,1749906651661,-177.983414,0.000245,7]
[365776695,1749906651670,-177.983414,0.000245,7]
[365776696,1749906651680,-169.011378,0.000245,7]
[365776697,1749906651691,-179.304406,0.000245,7]
[365776698,1749906651701,-179.304406,0.000245,7]
[365776699,1749906651711,-151.0,0.000245,7]
[365776700,1749906651720,-151.0,0.000245,7]
[365776701,1749906651730,-151.0,0.000245,7]
[365776702,1749906651739,-151.0,0.000245,7]
[365776703,1749906651748,-151.0,0.000245,7]
[365776704,1749906651758,-217.428113,0.000245,7]
[365776705,1749906651767,-217.428113,0.000245,7]
[365776706,1749906651777,-2000.0,0.000245,2]
[365776707,1749906651787,-151.0,0.000245,7]
[365776708,1749906651796,-151.0,0.000245,7]
[365776709,1749906651806,-848.2315,0.000245,2]
[365776710,1749906651815,-207.014029,0.000245,7]
[365776711,1749906651823,-207.014029,0.000245,7]
[365776712,1749906651834,-845.10789306,0.000245,30]
[365776713,1749906651843,-151.0,0.000245,7]
[365776714,1749906651851,-151.0,0.000245,7]
[365776715,1749906651861,-177.894737,0.000245,7]
[365776716,1749906651871,-177.894737,0.000245,7]
[365776717,1749906651880,-3080.41878426,0.00024521,2]
[365776718,1749906651890,-160.0,0.00024558,5]
[365776719,1749906651899,-1580.99945931,0.0002459,11]
[365776720,1749906651908,-108740.95,0.000246,2]
[365776721,1749906651917,-848.2315,0.000246,2]
[365776722,1749906651926,-587.0,0.00024608,2]
[365776723,1749906651935,-206.0,0.0002461,2]
[365776724,1749906651943,-208.0,0.0002461,2]
[365776725,1749906651952,-207.0,0.0002461,2]
[365776726,1749906651961,-3080.41878426,0.00024613,2]
[365776727,1749906651970,-191.0,0.00024635,2]
[365776728,1749906651980,-160.0,0.00024656,2]
[365776729,1749906651989,-200.0,0.00024656,2]
[365776730,1749906651998,-200.97384328,0.00024657,2]
[365776731,1749906652007,-844.95,0.00024657,4]
[365776732,1749906652017,-1794.95,0.00024657,4]
[365776733,1749906652026,-460.0,0.00024657,4]
[365776734,1749906652036,-785.69,0.00024657,4]
[365776735,1749906652045,-207.014029,0.00024657,7]
[365776736,1749906652054,-1752.21,0.00024657,4]
[365776737,1749906652063,-460.0,0.00024657,2]
[365776738,1749906652072,-207.014032,0.00024657,7]
[365776739,1749906652081,-1681.61,0.00024657,4]
[365776740,1749906652091,-460.0,0.00024657,4]
[365776741,1749906652100,-4179.07,0.00024657,4]
[365776742,1749906652110,-1735.71,0.00024657,4]
[365776743,1749906652119,-151.0,0.00024657,7]
[365776744,1749906652128,-663.38,0.00024657,4]
[365776745,1749906652138,-1524.42,0.00024657,4]
[365776746,1749906652147,-1397.27,0.00024657,4]
[365776747,1749906652156,-478.44,0.00024657,4]
[365776748,1749906652165,-1932.48,0.00024657,4]
[365776749,1749906652175,-642.09,0.00024657,4]
[365776750,1749906652184,-460.0,0.00024657,4]
[365776751,1749906652194,-460.0,0.00024657,4]
[365776752,1749906652203,-817.11,0.00024657,4]
[365776753,1749906652213,-1000.0,0.00024658,2]
[365776754,1749906652226,-1000.0,0.00024658,2]
[365776755,1749906652234,-1000.0,0.00024658,2]
[365776756,1749906652244,-1000.0,0.00024658,2]
[365776757,1749906652254,-1000.0,0.00024658,2]
[365776758,1749906652263,-1000.0,0.00024658,2]
[365776759,1749906652272,-1000.0,0.00024658,2]
[365776760,1749906652281,-1000.0,0.00024658,2]
[365776761,1749906652290,-1000.0,0.00024658,2]
[365776762,1749906652301,-1000.0,0.00024658,2]
[365776763,1749906652311,-1000.0,0.00024658,2]
[365776764,1749906652320,-1000.0,0.00024658,2]
[365776765,1749906652329,-1000.0,0.00024658,2]
[365776766,1749906652338,-1000.0,0.00024658,2]
[365776767,1749906652348,-1000.0,0.00024658,2]
[365776768,1749906652357,-1000.0,0.00024658,2]
[365776769,1749906652366,-1000.0,0.00024658,2]
[365776770,1749906652375,-1000.0,0.00024658,2]
[365776771,1749906652385,-1000.0,0.00024658,2]
[365776772,1749906652394,-1000.0,0.00024658,2]
[365776773,1749906652404,-1000.0,0.00024658,2]
[365776774,1749906652413,-1000.0,0.00024658,2]
[365776775,1749906652422,-1000.0,0.00024658,2]
[365776776,1749906652431,-1000.0,0.00024658,2]
[365776777,1749906652441,-1000.0,0.00024658,2]
[365776778,1749906652450,-1000.0,0.00024658,2]
[365776779,1749906652459,-1000.0,0.00024658,2]
[365776780,1749906652469,-1000.0,0.00024658,2]
[365776781,1749906652478,-200.0,0.00024658,15]
[365776782,1749906652487,-217.428113,0.00024658,7]
[365776783,1749906652496,-217.428113,0.00024658,7]
[365776784,1749906652505,-151.0,0.00024658,7]
[365776785,1749906652515,-500.0,0.00024658,2]
[365776786,1749906652525,-177.894737,0.00024658,7]
[365776787,1749906652534,-177.894731,0.00024658,7]
[365776788,1749906652543,-1003.66755232,0.00024668,2]
[365776789,1749906652552,-795.84509687,0.00024668,2]
[365776790,1749906652562,-1501.74153471,0.00024668,2]
[365776791,1749906652572,-516.47411252,0.00024668,2]
[365776792,1749906652582,-1500.0,0.00024668,2]
[365776793,1749906652592,-1500.0,0.00024668,2]
[365776794,1749906652601,-1500.0,0.00024668,2]
[365776795,1749906652610,-1500.0,0.00024668,2]
[365776796,1749906652620,-1500.0,0.00024668,2]
[365776797,1749906652629,-1800.0,0.00024668,2]
[365776798,1749906652639,-1500.0,0.00024668,2]
[365776799,1749906652649,-1001.16145131,0.00024668,2]
[365776800,1749906652659,-1500.0,0.00024668,2]
[365776801,1749906652667,-191.0,0.00024672,2]
[365776802,1749906652677,-191.0,0.00024673,2]
[365776803,1749906652686,-200.0,0.0002468,120]
[365776804,1749906652696,-168.0,0.00024682,2]
[365776805,1749906652705,-500.0,0.00024685,2]
[365776806,1749906652715,-666.42,0.00024687,2]
[365776807,1749906652725,-1580.99945931,0.00024693,11]
[365776808,1749906652734,-3025.72,0.000247,30]
[365776809,1749906652744,-177.983414,0.000247,7]
[365776810,1749906652753,-177.983405,0.000247,7]
[365776811,1749906652763,-761.76,0.000247,31]
[365776812,1749906652772,-761.76,0.000247,31]
[365776813,1749906652782,-761.76,0.000247,31]
[365776814,1749906652791,-761.76,0.000247,31]
[365776815,1749906652801,-761.76,0.000247,31]
[365776816,1749906652811,-761.76,0.000247,31]
[365776817,1749906652821,-761.76,0.000247,31]
[365776818,1749906652830,-761.76,0.000247,31]
[365776819,1749906652841,-761.76,0.000247,31]
[365776820,1749906652850,-761.76,0.000247,31]
[365776821,1749906652860,-761.76,0.000247,31]
[365776822,1749906652870,-761.76,0.000247,31]
[365776823,1749906652879,-761.76,0.000247,31]
[365776824,1749906652888,-761.76,0.000247,31]
[365776825,1749906652898,-3080.41878426,0.00024704,2]
[365776826,1749906652907,-200.0,0.00024712,120]
[365776827,1749906652918,-1500.0,0.00024712,2]
[365776828,1749906652928,-500.0,0.00024713,2]
[365776829,1749906652938,-300.0,0.00024719,2]
[365776830,1749906652948,-500.0,0.0002474,2]
[365776831,1749906652959,-620.67332546,0.00024748,30]
[365776832,1749906652968,-178.205831,0.00024754,7]
[365776833,1749906652978,-587.0,0.00024758,2]
[365776834,1749906652989,-500.0,0.00024768,2]
[365776835,1749906652999,-500.0,0.00024795,2]
[365776836,1749906653008,-3080.41878426,0.00024796,2]
[365776837,1749906653018,-1580.99945931,0.00024797,11]
[365776838,1749906653027,-2000.0,0.000248,2]
[365776839,1749906653037,-2000.0,0.000248,2]
[365776840,1749906653047,-200.0,0.000248,120]
[365776841,1749906653056,-151.0,0.000248,7]
[365776842,1749906653066,-5020.44478899,0.000248,30]
[365776843,1749906653076,-151.0,0.000248,7]
[365776844,1749906653086,-302.711232,0.000248,7]
[365776845,1749906653095,-302.711232,0.000248,7]
[365776846,1749906653105,-151.0,0.000248,7]
[365776847,1749906653115,-151.0,0.000248,7]
[365776848,1749906653125,-151.0,0.000248,7]
[365776849,1749906653135,-151.0,0.000248,7]
[365776850,1749906653145,-151.0,0.000248,7]
[365776851,1749906653154,-217.428113,0.000248,7]
[365776852,1749906653164,-217.428113,0.000248,7]
[365776853,1749906653174,-9083.2511446,0.000248,2]
[365776854,1749906653184,-250.0,0.00024821,2]
[365776855,1749906653193,-191.0,0.00024822,2]
[365776856,1749906653203,-500.0,0.00024822,2]
[365776857,1749906653213,-1593.45162298,0.00024848,2]
[365776858,1749906653226,-500.0,0.0002485,2]
[365776859,1749906653236,-151.42789,0.0002485,7]
[365776860,1749906653245,-168.0,0.00024855,2]
[365776861,1749906653254,-179.304406,0.00024869,7]
[365776862,1749906653265,-179.304406,0.00024869,7]
[365776863,1749906653274,-242.779482,0.00024869,7]
[365776864,1749906653283,-200.0,0.00024871,120]
[365776865,1749906653294,-500.0,0.00024877,2]
[365776866,1749906653303,-3080.41878426,0.00024887,2]
[365776867,1749906653313,-164.7498231,0.00024887,2]
[365776868,1749906653322,-666.42,0.00024887,5]
[365776869,1749906653332,-1339.89164044,0.000249,2]
[365776870,1749906653342,-2639.90290335,0.000249,2]
[365776871,1749906653352,-3800.86417205,0.000249,30]
[365776872,1749906653452,-415.27,0.000249,60]
[365776873,1749906653462,-401.0,0.000249,60]
[365776874,1749906653472,-27849.91629847,0.000249,30]
[365776875,1749906653482,-151.0,0.000249,7]
[365776876,1749906653491,-151.0,0.000249,7]
[365776877,1749906653500,-151.0,0.000249,7]
[365776878,1749906653510,-10000.0,0.000249,30]
[365776879,1749906653519,-250.0,0.000249,2]
[365776880,1749906653528,-250.0,0.000249,2]
[365776881,1749906653537,-250.0,0.000249,2]
[365776882,1749906653547,-250.0,0.000249,2]
[365776883,1749906653556,-250.0,0.000249,2]
[365776884,1749906653565,-250.0,0.000249,2]
[365776885,1749906653574,-250.0,0.000249,2]
[365776886,1749906653583,-250.0,0.000249,2]
[365776887,1749906653593,-250.0,0.000249,2]
[365776888,1749906653602,-250.0,0.000249,2]
[365776889,1749906653612,-250.0,0.000249,2]
[365776890,1749906653621,-250.0,0.000249,2]
[365776891,1749906653630,-250.0,0.000249,2]
[365776892,1749906653640,-250.0,0.000249,2]
[365776893,1749906653650,-250.0,0.000249,2]
[365776894,1749906653659,-250.0,0.000249,2]
[365776895,1749906653669,-250.0,0.000249,2]
[365776896,1749906653679,-300.6,0.000249,2]
[365776897,1749906653689,-151.0,0.000249,7]
[365776898,1749906653698,-179.304406,0.000249,7]
[365776899,1749906653708,-179.304406,0.000249,7]
[365776900,1749906653717,-302.711232,0.000249,7]
[365776901,1749906653727,-302.711232,0.000249,7]
[365776902,1749906653736,-151.0,0.000249,7]
[365776903,1749906653745,-264.459639,0.000249,7]
[365776904,1749906653754,-151.0,0.000249,7]
[365776905,1749906653763,-151.0,0.000249,7]
[365776906,1749906653773,-217.428113,0.000249,7]
[365776907,1749906653782,-217.428113,0.000249,7]
[365776908,1749906653792,-625903.821862,0.000249,2]
[365776909,1749906653801,-1580.99945931,0.000249,12]
[365776910,1749906653811,-500.0,0.00024905,2]
[365776911,1749906653820,-200.0,0.00024917,120]
[365776912,1749906653830,-500.0,0.00024919,60]
[365776913,1749906653840,-621.0,0.00024919,60]
[365776914,1749906653849,-2000.0,0.00024919,30]
[365776915,1749906653859,-500.0,0.0002492,3]
[365776916,1749906653869,-500.0,0.00024922,60]
[365776917,1749906653879,-500.0,0.00024922,60]
[365776918,1749906653889,-500.0,0.00024922,60]
[365776919,1749906653898,-279.92,0.00024922,60]
[365776920,1749906653908,-20000.0,0.00024922,60]
[365776921,1749906653917,-2000.10312806,0.00024922,120]
[365776922,1749906653926,-710.0,0.00024922,60]
[365776923,1749906653935,-500.0,0.00024925,3]
[365776924,1749906653945,-2976.99,0.00024926,2]
[365776925,1749906653954,-500.0,0.0002493,3]
[365776926,1749906653963,-844.95,0.00024931,4]
[365776927,1749906653974,-1794.95,0.00024931,4]
[365776928,1749906653983,-460.0,0.00024931,4]
[365776929,1749906653993,-785.69,0.00024931,4]
[365776930,1749906654002,-1752.21,0.00024931,4]
[365776931,1749906654011,-460.0,0.00024931,2]
[365776932,1749906654021,-1681.61,0.00024931,4]
[365776933,1749906654031,-460.0,0.00024931,4]
[365776934,1749906654040,-4179.07,0.00024931,4]
[365776935,1749906654050,-1735.71,0.00024931,4]
[365776936,1749906654059,-663.38,0.00024931,4]
[365776937,1749906654068,-1524.42,0.00024931,4]
[365776938,1749906654078,-1397.27,0.00024931,4]
[365776939,1749906654088,-478.44,0.00024931,4]
[365776940,1749906654097,-1932.48,0.00024931,4]
[365776941,1749906654107,-642.09,0.00024931,4]
[365776942,1749906654116,-460.0,0.00024931,4]
[365776943,1749906654125,-460.0,0.00024931,4]
[365776944,1749906654135,-817.11,0.00024931,4]
[365776945,1749906654144,-500.0,0.00024932,2]
[365776946,1749906654153,-10000.0,0.00024934,60]
[365776947,1749906654163,-10000.0,0.00024934,60]
[365776948,1749906654173,-10000.0,0.00024934,60]
[365776949,1749906654182,-10000.0,0.00024934,60]
[365776950,1749906654192,-500.0,0.00024934,60]
[365776951,1749906654203,-500.0,0.00024935,3]
[365776952,1749906654213,-10000.0,0.00024936,60]
[365776953,1749906654227,-10000.0,0.00024936,60]
[365776954,1749906654236,-253.0,0.00024937,60]
[365776955,1749906654245,-413.0,0.00024937,60]
[365776956,1749906654255,-8763.0,0.00024938,60]
[365776957,1749906654266,-2709.0,0.00024939,60]
[365776958,1749906654276,-596.84,0.00024939,120]
[365776959,1749906654286,-500.0,0.0002494,3]
[365776960,1749906654296,-500.0,0.0002494,60]
[365776961,1749906654306,-500.0,0.00024942,3]
[365776962,1749906654316,-255.98,0.00024942,60]
[365776963,1749906654326,-418.0,0.00024942,60]
[365776964,1749906654335,-1789.85,0.00024945,60]
[365776965,1749906654344,-151.0,0.00024946,7]
[365776966,1749906654354,-183.689755,0.00024946,7]
[365776967,1749906654364,-500.0,0.00024948,60]
[365776968,1749906654373,-500.0,0.00024948,60]
[365776969,1749906654383,-500.0,0.00024948,60]
[365776970,1749906654392,-617.73,0.00024948,60]
[365776971,1749906654402,-151.0,0.00024949,7]
[365776972,1749906654411,-3095.38961986,0.0002495,2]
[365776973,1749906654420,-300.0,0.0002495,60]
[365776974,1749906654429,-351.0,0.0002495,60]
[365776975,1749906654440,-151.0,0.0002495,7]
[365776976,1749906654449,-179.304406,0.0002495,7]
[365776977,1749906654458,-179.304406,0.0002495,7]
[365776978,1749906654468,-302.711232,0.0002495,7]
[365776979,1749906654478,-302.711232,0.0002495,7]
[365776980,1749906654487,-151.0,0.0002495,7]
[365776981,1749906654496,-151.0,0.0002495,7]
[365776982,1749906654506,-500.0,0.0002495,5]
[365776983,1749906654515,-151.0,0.0002495,7]
[365776984,1749906654525,-5700.0,0.0002495,60]
[365776985,1749906654534,-2300.0,0.0002495,60]
[365776986,1749906654544,-151.0,0.00024953,7]
[365776987,1749906654553,-151.0,0.00024953,7]
[365776988,1749906654562,-151.0,0.00024953,7]
[365776989,1749906654572,-151.0,0.00024953,7]
[365776990,1749906654582,-561.0,0.00024953,20]
[365776991,1749906654593,-3009.84,0.00024953,60]
[365776992,1749906654602,-394.74702596,0.00024956,60]
[365776993,1749906654613,-599.16,0.00024957,60]
[365776994,1749906654623,-10000.0,0.00024958,60]
[365776995,1749906654633,-10000.0,0.00024958,60]
[365776996,1749906654642,-1358.88,0.00024958,60]
[365776997,1749906654651,-1001.77218154,0.00024958,60]
[365776998,1749906654661,-500.0,0.00024959,2]
[365776999,1749906654671,-500.0,0.0002496,3]
[365777000,1749906654680,-500.1,0.0002496,60]
[365777001,1749906654690,-500.0,0.0002496,120]
[365777002,1749906654699,-1000.0,0.0002496,120]
[365777003,1749906654708,-361.73,0.00024964,60]
[365777004,1749906654718,-151.0,0.00024969,7]
[365777005,1749906654728,-151.0,0.00024969,7]
[365777006,1749906654738,-151.0,0.00024969,7]
[365777007,1749906654747,-161.12352,0.00024969,7]
[365777008,1749906654757,-302.711232,0.00024969,7]
[365777009,1749906654767,-302.711232,0.00024969,7]
[365777010,1749906654776,-302.711232,0.00024969,7]
[365777011,1749906654785,-302.711232,0.00024969,7]
[365777012,1749906654795,-302.711232,0.00024969,7]
[365777013,1749906654804,-302.711232,0.00024969,7]
[365777014,1749906654814,-302.711232,0.00024969,7]
[365777015,1749906654823,-302.711232,0.00024969,7]
[365777016,1749906654833,-302.711232,0.00024969,7]
[365777017,1749906654843,-302.711232,0.00024969,7]
[365777018,1749906654852,-302.711232,0.00024969,7]
[365777019,1749906654862,-302.711232,0.00024969,7]
[365777020,1749906654871,-302.711232,0.00024969,7]
[365777021,1749906654881,-302.71123492,0.00024969,7]
[365777022,1749906654890,-500.0,0.0002497,3]
[365777023,1749906654899,-179.0,0.00024971,3]
[365777024,1749906654909,-500.0,0.00024973,2]
[365777025,1749906654918,-239.1,0.00024973,60]
[365777026,1749906654927,-500.0,0.0002498,3]
[365777027,1749906654937,-200.0,0.0002498,60]
[365777028,1749906654946,-500.0,0.00024981,3]
[365777029,1749906654956,-179.304406,0.00024981,7]
[365777030,1749906654965,-179.304406,0.00024981,7]
[365777031,1749906654975,-179.304406,0.00024981,7]
[365777032,1749906654984,-179.304406,0.00024981,7]
[365777033,1749906654994,-179.304406,0.00024981,7]
[365777034,1749906655003,-179.304406,0.00024981,7]
[365777035,1749906655012,-179.304406,0.00024981,7]
[365777036,1749906655022,-179.304406,0.00024981,7]
[365777037,1749906655031,-179.304406,0.00024981,7]
[365777038,1749906655041,-179.304406,0.00024981,7]